[Event "NM-Senior Hurtig 2018"]
[Site "Frimurer Logen, Norway"]
[Date "2018.11.10"]
[Round "5.1"]
[White "Bjerke, Richard"]
[Black "Gyldenås, Ole Jørn"]
[Result "1-0"]
[TimeControl "20 + 10"]
[WhiteElo "2094"]
[BlackElo "1743"]

1. d4 {[%clk 00:20:08]} Nf6 {[%clk 00:20:07]} {[%emt 00:00:04]} 2. c4 {[%clk
00:20:13]} {[%emt 00:00:04]} e6 {[%clk 00:20:15]} {[%emt 00:00:03]} 3. Nf3
{[%clk 00:20:19]} {[%emt 00:00:03]} d5 {[%clk 00:20:04]} {[%emt 00:00:22]} 4.
Nc3 {[%clk 00:19:19]} {[%emt 00:01:09]} Be7 {[%clk 00:19:51]} {[%emt 00:00:24]}
5. Bg5 {[%clk 00:19:22]} {[%emt 00:00:07]} O-O {[%clk 00:19:50]} {[%emt
00:00:12]} 6. e3 {[%clk 00:19:28]} {[%emt 00:00:03]} c6 {[%clk 00:19:22]}
{[%emt 00:00:39]} 7. Rc1 {[%clk 00:18:55]} {[%emt 00:00:42]} Nbd7 {[%clk
00:19:17]} {[%emt 00:00:15]} 8. Bd3 {[%clk 00:18:46]} {[%emt 00:00:18]} dxc4
{[%clk 00:19:11]} {[%emt 00:00:17]} 9. Bxc4 {[%clk 00:18:52]} {[%emt 00:00:04]}
Nd5 {[%clk 00:19:12]} {[%emt 00:00:10]} 10. Bxe7 {[%clk 00:18:33]} {[%emt
00:00:28]} Qxe7 {[%clk 00:19:14]} {[%emt 00:00:07]} 11. O-O {[%clk 00:18:18]}
{[%emt 00:00:24]} Nxc3 {[%clk 00:18:35]} {[%emt 00:00:51]} 12. Rxc3 {[%clk
00:18:07]} {[%emt 00:00:20]} e5 {[%clk 00:18:12]} {[%emt 00:00:34]} 13. Qc2
{[%clk 00:16:28]} {[%emt 00:01:47]} e4 {[%clk 00:17:11]} {[%emt 00:01:13]} 14.
Nd2 {[%clk 00:16:20]} {[%emt 00:00:16]} Nf6 {[%clk 00:17:12]} {[%emt 00:00:10]}
15. Bb3 {[%clk 00:15:35]} {[%emt 00:00:53]} Bg4 {[%clk 00:15:11]} {[%emt
00:02:12]} 16. Re1 {[%clk 00:14:13]} {[%emt 00:01:31]} Rad8 {[%clk 00:14:49]}
{[%emt 00:00:33]} 17. h3 {[%clk 00:13:19]} {[%emt 00:01:03]} Bc8 {[%clk
00:13:59]} {[%emt 00:01:00]} 18. Rc1 {[%clk 00:11:34]} {[%emt 00:01:55]} Rfe8
{[%clk 00:12:40]} {[%emt 00:01:30]} 19. Nc4 {[%clk 00:08:20]} {[%emt 00:03:22]}
Nd5 {[%clk 00:12:15]} {[%emt 00:00:37]} 20. Ne5 {[%clk 00:08:27]} {[%emt
00:00:02]} f6 {[%clk 00:10:13]} {[%emt 00:02:13]} 21. Nxc6 {[%clk 00:06:51]}
{[%emt 00:01:46]} bxc6 {[%clk 00:09:52]} {[%emt 00:00:31]} 22. Rxc6 {[%clk
00:06:58]} {[%emt 00:00:02]} Be6 {[%clk 00:06:05]} {[%emt 00:03:58]} 23. Qxe4
{[%clk 00:06:14]} {[%emt 00:00:55]} Bf7 {[%clk 00:05:48]} {[%emt 00:00:27]} 24.
Qf3 {[%clk 00:05:43]} {[%emt 00:00:34]} Qf8 {[%clk 00:04:26]} {[%emt 00:01:39]}
25. R1c5 {[%clk 00:03:06]} {[%emt 00:02:47]} Nb4 {[%clk 00:03:56]} {[%emt
00:00:40]} 26. Bxf7+ {[%clk 00:03:07]} {[%emt 00:00:09]} Qxf7 {[%clk 00:03:53]}
{[%emt 00:00:14]} 27. Rc7 {[%clk 00:03:16]} {[%emt 00:00:02]} Re7 {[%clk
00:03:34]} {[%emt 00:00:29]} 28. Qb7 {[%clk 00:03:09]} {[%emt 00:00:17]} Rxc7
{[%clk 00:02:23]} {[%emt 00:01:21]} 29. Rxc7 {[%clk 00:03:14]} {[%emt
00:00:05]} Qf8 {[%clk 00:02:25]} {[%emt 00:00:08]} 30. Qxa7 {[%clk 00:02:38]}
{[%emt 00:00:46]} Nd5 {[%clk 00:02:26]} {[%emt 00:00:09]} 31. Rc5 {[%clk
00:02:01]} {[%emt 00:00:47]} f5 {[%clk 00:01:42]} {[%emt 00:00:55]} 32. Qb7
{[%clk 00:01:58]} {[%emt 00:00:12]} Qf7 {[%clk 00:01:30]} {[%emt 00:00:23]} 33.
Qb3 {[%clk 00:01:59]} {[%emt 00:00:07]} g6 {[%clk 00:01:15]} {[%emt 00:00:26]}
34. a4 {[%clk 00:01:57]} {[%emt 00:00:12]} Kg7 {[%clk 00:01:12]} {[%emt
00:00:13]} 35. a5 {[%clk 00:02:01]} {[%emt 00:00:06]} Kh6 {[%clk 00:01:13]}
{[%emt 00:00:08]} 36. a6 {[%clk 00:02:02]} {[%emt 00:00:09]} Qd7 {[%clk
00:00:39]} {[%emt 00:00:44]} 37. a7 {[%clk 00:02:06]} {[%emt 00:00:06]} Nf6
{[%clk 00:00:24]} {[%emt 00:00:25]} 38. Qb6 {[%clk 00:02:06]} {[%emt 00:00:09]}
Ne4 {[%clk 00:00:27]} {[%emt 00:00:08]} 39. Rc7 {[%clk 00:02:12]} {[%emt
00:00:04]} Qa4 {[%clk 00:00:29]} {[%emt 00:00:09]} 40. Qb7 {[%clk 00:02:08]}
{[%emt 00:00:14]} Rh8 {[%clk 00:00:22]} {[%emt 00:00:16]} 41. a8=Q {[%clk
00:01:58]} {[%emt 00:00:19]} Qd1+ {[%clk 00:00:14]} {[%emt 00:00:18]} 42. Kh2
{[%clk 00:02:05]} {[%emt 00:00:03]} Nxf2 {[%clk 00:00:22]} {[%emt 00:00:02]} 43.
Qxh8 {[%clk 00:01:09]} {[%emt 00:01:06]} Qh1+ {[%clk 00:00:21]} {[%emt
00:00:12]} 44. Kg3 {[%clk 00:01:17]} {[%emt 00:00:02]} Ne4+ {[%clk 00:00:25]}
{[%emt 00:00:06]} 45. Qxe4 {[%clk 00:01:25]} {[%emt 00:00:02]} Qe1+ {[%clk
00:00:27]} {[%emt 00:00:09]} 46. Kh2 {[%clk 00:01:34]} 1-0

[Event "NM-Senior Hurtig 2018"]
[Site "Frimurer Logen, Norway"]
[Date "2018.11.10"]
[Round "5.3"]
[White "Hamre, Einar"]
[Black "Oldernes, Lars Arne"]
[Result "1/2-1/2"]
[TimeControl "20 + 10"]
[WhiteElo "1778"]
[BlackElo "1697"]

1. e4 {[%clk 00:20:05]} {[%emt 00:00:04]} e5 {[%clk 00:20:07]} {[%emt
00:00:04]} 2. Nf3 {[%clk 00:20:12]} {[%emt 00:00:02]} Nf6 {[%clk 00:20:14]}
{[%emt 00:00:03]} 3. Nxe5 {[%clk 00:20:19]} {[%emt 00:00:03]} Qe7 {[%clk
00:20:21]} {[%emt 00:00:01]} 4. d4 {[%clk 00:19:36]} {[%emt 00:00:56]} Nc6
{[%clk 00:17:30]} {[%emt 00:03:01]} 5. Nc3 {[%clk 00:16:25]} {[%emt 00:03:21]}
Nxe5 {[%clk 00:17:22]} {[%emt 00:00:16]} 6. dxe5 {[%clk 00:16:34]} {[%emt
00:00:03]} Qxe5 {[%clk 00:17:24]} {[%emt 00:00:07]} 7. Bd3 {[%clk 00:14:46]}
{[%emt 00:01:58]} Bb4 {[%clk 00:13:07]} {[%emt 00:04:26]} 8. Bd2 {[%clk
00:14:34]} {[%emt 00:00:23]} d5 {[%clk 00:11:28]} {[%emt 00:01:49]} 9. Qe2
{[%clk 00:12:05]} {[%emt 00:02:39]} dxe4 {[%clk 00:09:36]} {[%emt 00:02:02]} 10.
Nxe4 {[%clk 00:09:40]} {[%emt 00:02:35]} Bxd2+ {[%clk 00:09:23]} {[%emt
00:00:23]} 11. Nxd2 {[%clk 00:09:44]} {[%emt 00:00:07]} Qxe2+ {[%clk 00:09:26]}
{[%emt 00:00:06]} 12. Bxe2 {[%clk 00:09:45]} {[%emt 00:00:10]} Bf5 {[%clk
00:09:29]} {[%emt 00:00:04]} 13. O-O-O {[%clk 00:09:09]} {[%emt 00:00:49]}
O-O-O {[%clk 00:09:19]} {[%emt 00:00:18]} 14. Bc4 {[%clk 00:06:39]} {[%emt
00:02:41]} Bg6 {[%clk 00:09:16]} {[%emt 00:00:13]} 15. f3 {[%clk 00:04:47]}
{[%emt 00:02:03]} Rd4 {[%clk 00:08:32]} {[%emt 00:00:52]} 16. Bb3 {[%clk
00:04:17]} {[%emt 00:00:41]} Rhd8 {[%clk 00:08:18]} {[%emt 00:00:22]} 17. Nc4
{[%clk 00:04:21]} {[%emt 00:00:09]} Rxd1+ {[%clk 00:06:23]} {[%emt 00:02:05]}
18. Rxd1 {[%clk 00:04:29]} {[%emt 00:00:01]} Rxd1+ {[%clk 00:06:32]} {[%emt
00:00:02]} 19. Kxd1 {[%clk 00:04:38]} {[%emt 00:00:01]} Kd7 {[%clk 00:06:41]}
{[%emt 00:00:02]} 20. Kd2 {[%clk 00:03:48]} {[%emt 00:00:59]} c5 {[%clk
00:05:42]} {[%emt 00:01:08]} 21. a4 {[%clk 00:02:46]} {[%emt 00:01:13]} Nd5
{[%clk 00:05:07]} {[%emt 00:00:42]} 22. Ne5+ {[%clk 00:02:18]} {[%emt
00:00:40]} Kd6 {[%clk 00:05:13]} {[%emt 00:00:03]} 23. Nc4+ {[%clk 00:01:40]}
{[%emt 00:00:50]} Kc7 {[%clk 00:03:36]} {[%emt 00:01:46]} 24. g3 {[%clk
00:01:37]} {[%emt 00:00:14]} Nb6 {[%clk 00:03:21]} {[%emt 00:00:25]} 25. Ne5
{[%clk 00:01:04]} {[%emt 00:00:43]} f6 {[%clk 00:03:21]} {[%emt 00:00:09]} 26.
Nxg6 hxg6 {[%clk 00:03:30]} 27. a5 {[%clk 00:00:57]} {[%emt 00:00:24]} Nd7
{[%clk 00:03:32]} {[%emt 00:00:07]} 28. f4 {[%clk 00:00:47]} {[%emt 00:00:21]}
Kd6 {[%clk 00:03:41]} {[%emt 00:00:02]} 29. Ke3 {[%clk 00:00:45]} {[%emt
00:00:12]} b6 {[%clk 00:03:21]} {[%emt 00:00:29]} 30. axb6 {[%clk 00:00:32]}
{[%emt 00:00:23]} axb6 {[%clk 00:03:30]} {[%emt 00:00:01]} 31. Bf7 {[%clk
00:00:33]} {[%emt 00:00:10]} Nf8 {[%clk 00:03:10]} {[%emt 00:00:29]} 32. Ke4
{[%clk 00:00:25]} {[%emt 00:00:18]} Ke7 {[%clk 00:03:08]} {[%emt 00:00:12]} 33.
Bc4 {[%clk 00:00:30]} {[%emt 00:00:05]} Kd6 {[%clk 00:03:17]} 34. f5 {[%clk
00:00:32]} {[%emt 00:00:09]} g5 {[%clk 00:03:10]} {[%emt 00:00:16]} 35. h4
{[%clk 00:00:35]} {[%emt 00:00:08]} gxh4 {[%clk 00:03:15]} {[%emt 00:00:05]} 36.
gxh4 {[%clk 00:00:44]} {[%emt 00:00:01]} Nd7 {[%emt 00:00:09]} 37. Kf4 {[%clk
00:00:34]} {[%emt 00:00:19]} Ne5 {[%clk 00:03:24]} {[%emt 00:00:02]} 38. Bg8
{[%clk 00:00:21]} {[%emt 00:00:24]} c4 {[%clk 00:03:16]} {[%emt 00:00:17]} 39.
Ke4 {[%clk 00:00:26]} {[%emt 00:00:05]} Kc5 {[%clk 00:03:22]} {[%emt 00:00:04]}
40. Be6 {[%clk 00:00:31]} {[%emt 00:00:06]} Ng4 {[%clk 00:02:53]} {[%emt
00:00:39]} 41. Kf4 {[%clk 00:00:33]} {[%emt 00:00:07]} Ne5 {[%clk 00:02:49]}
{[%emt 00:00:14]} 42. Ke4 {[%clk 00:00:42]} {[%emt 00:00:02]} Nc6 {[%clk
00:02:44]} {[%emt 00:00:15]} 43. c3 {[%clk 00:00:32]} {[%emt 00:00:20]} Ne5
{[%clk 00:02:50]} {[%emt 00:00:03]} 44. h5 {[%clk 00:00:27]} {[%emt 00:00:15]}
b5 {[%clk 00:02:24]} {[%emt 00:00:36]} 45. Ke3 {[%clk 00:00:15]} {[%emt
00:00:22]} Ng4+ {[%clk 00:02:13]} {[%emt 00:00:21]} 46. Kd2 {[%clk 00:00:16]}
{[%emt 00:00:09]} Ne5 {[%clk 00:01:29]} {[%emt 00:00:54]} 47. Ke3 {[%clk
00:00:25]} Nd3 {[%clk 00:00:57]} {[%emt 00:00:43]} 48. b4+ {[%clk 00:00:35]}
Kd6 {[%clk 00:00:55]} {[%emt 00:00:12]} 49. Bg8 {[%clk 00:00:31]} {[%emt
00:00:13]} Ne5 {[%clk 00:00:27]} {[%emt 00:00:38]} 50. Kd4 {[%clk 00:00:29]}
{[%emt 00:00:12]} Nf3+ {[%clk 00:00:31]} {[%emt 00:00:07]} 51. Ke4 {[%clk
00:00:33]} {[%emt 00:00:05]} Ne5 {[%clk 00:00:35]} {[%emt 00:00:06]} 52. Bd5
{[%clk 00:00:36]} {[%emt 00:00:08]} Nd3 {[%clk 00:00:37]} {[%emt 00:00:08]} 53.
Bb7 {[%clk 00:00:40]} {[%emt 00:00:05]} Nf2+ {[%clk 00:00:27]} {[%emt
00:00:20]} 54. Kd4 {[%clk 00:00:44]} {[%emt 00:00:07]} Nh3 {[%clk 00:00:24]}
{[%emt 00:00:12]} 55. Bf3 {[%clk 00:00:46]} {[%emt 00:00:07]} Ng5 {[%clk
00:00:29]} {[%emt 00:00:06]} 56. Bg2 {[%clk 00:00:51]} {[%emt 00:00:04]} Nf7
{[%clk 00:00:36]} {[%emt 00:00:03]} 57. Bb7 {[%clk 00:00:49]} {[%emt 00:00:13]}
Ne5 {[%clk 00:00:41]} {[%emt 00:00:05]} 58. Ba6 {[%clk 00:00:51]} {[%emt
00:00:08]} Kc6 {[%clk 00:00:48]} {[%emt 00:00:02]} 59. Bc8 {[%clk 00:01:00]}
{[%emt 00:00:02]} Nf3+ {[%clk 00:00:52]} {[%emt 00:00:06]} 60. Ke3 {[%clk
00:01:05]} {[%emt 00:00:05]} Ne5 {[%clk 00:00:57]} {[%emt 00:00:05]} 61. Be6
{[%clk 00:01:09]} {[%emt 00:00:06]} Kd6 {[%clk 00:01:05]} {[%emt 00:00:03]} 62.
Bc8 {[%clk 00:01:15]} {[%emt 00:00:04]} Kc7 {[%clk 00:01:08]} {[%emt 00:00:06]}
63. Ba6 {[%clk 00:01:22]} {[%emt 00:00:03]} Kb6 {[%clk 00:01:17]} {[%emt
00:00:02]} 64. Bc8 {[%clk 00:01:31]} Kc7 {[%clk 00:01:26]} 65. Be6 {[%clk
00:01:39]} {[%emt 00:00:02]} Kd6 {[%clk 00:01:35]} {[%emt 00:00:02]} 66. Bc8
{[%clk 00:01:42]} {[%emt 00:00:07]} Kc7 {[%clk 00:01:42]} {[%emt 00:00:04]} 67.
Ba6 {[%clk 00:01:46]} {[%emt 00:00:05]} Kb6 {[%clk 00:01:51]} {[%emt 00:00:01]}
68. Bc8 {[%clk 00:01:54]} {[%emt 00:00:02]} Kc7 {[%clk 00:01:59]} {[%emt
00:00:02]} 69. Be6 {[%emt 00:00:17]} Kd6 {[%emt 00:00:02]} 70. Ke4 {[%emt
00:00:04]} Nd3 {[%emt 00:00:05]} 71. Kf3 {[%emt 00:00:10]} Nb2 {[%emt
00:00:05]} 72. Ke4 {[%emt 00:00:12]} Nd3 {[%emt 00:00:11]} 73. Bg8 Nf4 {[%emt
00:00:08]} 74. Kd4 1/2-1/2

[Event "NM-Senior Hurtig 2018"]
[Site "Frimurer Logen, Norway"]
[Date "2018.11.10"]
[Round "5.4"]
[White "Borch, Alex"]
[Black "Antonsen, Frode"]
[Result "1-0"]
[TimeControl "20 + 10"]
[WhiteElo "1728"]
[BlackElo "1656"]

1. e4 {[%clk 00:20:07]} {[%emt 00:00:02]} e6 {[%clk 00:20:06]} {[%emt
00:00:05]} 2. d4 {[%clk 00:20:08]} {[%emt 00:00:09]} d5 {[%clk 00:20:13]}
{[%emt 00:00:02]} 3. exd5 {[%clk 00:20:15]} {[%emt 00:00:03]} exd5 {[%clk
00:20:21]} {[%emt 00:00:02]} 4. Bd3 {[%clk 00:20:18]} {[%emt 00:00:08]} Nf6
{[%clk 00:20:12]} {[%emt 00:00:18]} 5. Bg5 {[%clk 00:20:09]} {[%emt 00:00:19]}
Be7 {[%clk 00:20:12]} {[%emt 00:00:10]} 6. Ne2 {[%clk 00:20:14]} {[%emt
00:00:05]} h6 {[%clk 00:20:01]} {[%emt 00:00:20]} 7. Bh4 {[%clk 00:20:14]}
{[%emt 00:00:10]} Ne4 {[%clk 00:19:14]} {[%emt 00:00:58]} 8. Bxe7 {[%clk
00:19:53]} {[%emt 00:00:32]} Qxe7 {[%clk 00:19:21]} {[%emt 00:00:02]} 9. c3
{[%clk 00:19:45]} {[%emt 00:00:18]} O-O {[%clk 00:18:56]} {[%emt 00:00:36]} 10.
Nd2 {[%clk 00:19:29]} {[%emt 00:00:26]} Nd7 {[%clk 00:17:41]} {[%emt 00:01:24]}
11. f3 {[%clk 00:18:41]} {[%emt 00:00:58]} Nxd2 {[%clk 00:17:36]} {[%emt
00:00:15]} 12. Qxd2 {[%clk 00:18:49]} {[%emt 00:00:03]} c5 {[%clk 00:17:12]}
{[%emt 00:00:34]} 13. O-O-O {[%clk 00:18:28]} {[%emt 00:00:31]} c4 {[%clk
00:17:04]} {[%emt 00:00:18]} 14. Bb1 {[%clk 00:18:14]} {[%emt 00:00:25]} b5
{[%clk 00:16:49]} {[%emt 00:00:24]} 15. g4 {[%clk 00:18:01]} {[%emt 00:00:23]}
Re8 {[%clk 00:16:05]} {[%emt 00:00:54]} 16. Nf4 {[%clk 00:16:51]} {[%emt
00:01:20]} Qd6 {[%clk 00:14:04]} {[%emt 00:02:11]} 17. Rde1 {[%clk 00:15:14]}
{[%emt 00:01:47]} Bb7 {[%clk 00:14:07]} {[%emt 00:00:06]} 18. Nh5 {[%clk
00:14:49]} {[%emt 00:00:35]} Nf6 {[%clk 00:13:58]} {[%emt 00:00:20]} 19. Ng3
{[%clk 00:14:07]} {[%emt 00:00:52]} Rxe1+ {[%clk 00:13:48]} {[%emt 00:00:19]}
20. Rxe1 {[%clk 00:14:14]} {[%emt 00:00:03]} Re8 {[%clk 00:13:57]} {[%emt
00:00:02]} 21. Rxe8+ {[%clk 00:13:12]} {[%emt 00:01:12]} Nxe8 {[%clk 00:14:05]}
{[%emt 00:00:02]} 22. Nf5 {[%clk 00:12:43]} {[%emt 00:00:39]} Qe6 {[%clk
00:13:50]} {[%emt 00:00:25]} 23. Qe3 {[%clk 00:12:29]} {[%emt 00:00:24]} Qxe3+
{[%clk 00:13:47]} {[%emt 00:00:12]} 24. Nxe3 {[%clk 00:12:37]} {[%emt
00:00:02]} g6 {[%clk 00:13:34]} {[%emt 00:00:23]} 25. Kd2 {[%clk 00:12:34]}
{[%emt 00:00:13]} Kg7 {[%clk 00:12:49]} {[%emt 00:00:55]} 26. Bc2 {[%clk
00:12:26]} {[%emt 00:00:19]} Nc7 {[%clk 00:12:44]} {[%emt 00:00:15]} 27. a4
{[%clk 00:11:46]} {[%emt 00:00:50]} a6 {[%clk 00:12:39]} {[%emt 00:00:15]} 28.
h4 {[%clk 00:11:18]} {[%emt 00:00:38]} Ne6 {[%clk 00:12:17]} {[%emt 00:00:31]}
29. Ng2 {[%clk 00:11:09]} {[%emt 00:00:19]} Bc6 {[%clk 00:12:15]} {[%emt
00:00:13]} 30. axb5 {[%clk 00:11:08]} {[%emt 00:00:11]} axb5 {[%clk 00:12:23]}
31. Ke3 {[%clk 00:10:52]} {[%emt 00:00:26]} f6 {[%clk 00:11:53]} {[%emt
00:00:40]} 32. f4 {[%clk 00:09:50]} {[%emt 00:01:13]} Nc7 {[%clk 00:10:53]}
{[%emt 00:01:10]} 33. Ne1 {[%clk 00:08:55]} {[%emt 00:01:05]} Bd7 {[%clk
00:10:53]} {[%emt 00:00:10]} 34. Kf3 {[%clk 00:07:39]} {[%emt 00:01:26]} Kf7
{[%clk 00:10:39]} {[%emt 00:00:24]} 35. Kg3 {[%clk 00:07:37]} {[%emt 00:00:13]}
Kg7 {[%clk 00:10:42]} {[%emt 00:00:06]} 36. Bd1 {[%clk 00:07:31]} {[%emt
00:00:16]} Kf7 {[%clk 00:10:37]} {[%emt 00:00:16]} 37. Bf3 {[%clk 00:07:19]}
{[%emt 00:00:22]} Bc6 {[%clk 00:10:37]} {[%emt 00:00:10]} 38. Nc2 {[%clk
00:07:10]} {[%emt 00:00:19]} Na6 {[%clk 00:10:45]} {[%emt 00:00:02]} 39. Kf2
{[%clk 00:06:57]} {[%emt 00:00:24]} Ke6 {[%clk 00:10:29]} {[%emt 00:00:26]} 40.
Ke2 {[%clk 00:06:34]} {[%emt 00:00:34]} Kd6 {[%clk 00:10:14]} {[%emt 00:00:24]}
41. Kd2 {[%clk 00:06:32]} {[%emt 00:00:12]} Bd7 {[%clk 00:09:51]} {[%emt
00:00:32]} 42. Ne3 {[%clk 00:06:20]} {[%emt 00:00:23]} Nc7 {[%clk 00:09:58]}
{[%emt 00:00:02]} 43. Ke2 {[%clk 00:05:47]} {[%emt 00:00:44]} Bc6 {[%clk
00:09:44]} {[%emt 00:00:23]} 44. h5 {[%clk 00:05:26]} {[%emt 00:00:31]} gxh5
{[%clk 00:09:36]} {[%emt 00:00:18]} 45. Nf5+ {[%clk 00:05:12]} {[%emt
00:00:25]} Ke6 {[%clk 00:09:35]} {[%emt 00:00:11]} 46. Ng7+ {[%clk 00:05:07]}
{[%emt 00:00:15]} Kf7 {[%clk 00:09:30]} {[%emt 00:00:16]} 47. Nxh5 {[%clk
00:05:15]} {[%emt 00:00:02]} b4 {[%clk 00:08:36]} {[%emt 00:01:04]} 48. cxb4
{[%clk 00:04:57]} {[%emt 00:00:28]} Na6 {[%clk 00:08:45]} 49. b5 {[%clk
00:04:48]} {[%emt 00:00:20]} Bxb5 {[%clk 00:08:51]} {[%emt 00:00:04]} 50. Bxd5+
{[%clk 00:04:56]} {[%emt 00:00:02]} Ke7 {[%clk 00:08:56]} {[%emt 00:00:04]} 51.
Kd2 {[%clk 00:04:54]} {[%emt 00:00:13]} Nb4 {[%clk 00:09:02]} {[%emt 00:00:03]}
52. Be4 {[%clk 00:04:41]} {[%emt 00:00:23]} Bd7 {[%clk 00:08:59]} {[%emt
00:00:13]} 53. f5 {[%clk 00:04:31]} {[%emt 00:00:20]} Bb5 {[%clk 00:08:50]}
{[%emt 00:00:19]} 54. Nf4 {[%clk 00:04:20]} {[%emt 00:00:21]} Kd6 {[%clk
00:07:45]} {[%emt 00:01:14]} 55. Nh5 {[%clk 00:04:19]} {[%emt 00:00:11]} Ke7
{[%clk 00:07:52]} {[%emt 00:00:02]} 56. Nf4 {[%clk 00:04:14]} {[%emt 00:00:17]}
Kd6 {[%clk 00:08:00]} {[%emt 00:00:01]} 57. Kc3 {[%clk 00:04:12]} {[%emt
00:00:13]} Na2+ {[%clk 00:08:08]} {[%emt 00:00:02]} 58. Kc2 {[%clk 00:04:20]}
{[%emt 00:00:02]} Nb4+ {[%clk 00:08:17]} 59. Kd2 {[%clk 00:04:28]} {[%emt
00:00:02]} Ba6 {[%clk 00:08:02]} {[%emt 00:00:24]} 60. Ne6 {[%clk 00:03:37]}
{[%emt 00:01:02]} Bb5 {[%clk 00:07:45]} {[%emt 00:00:27]} 61. Nd8 {[%clk
00:03:29]} {[%emt 00:00:18]} Ke7 {[%clk 00:07:33]} {[%emt 00:00:22]} 62. Nb7
{[%clk 00:03:31]} {[%emt 00:00:08]} Nc6 {[%clk 00:06:51]} {[%emt 00:00:52]} 63.
Kc3 {[%clk 00:03:20]} {[%emt 00:00:21]} Kd7 {[%clk 00:06:37]} {[%emt 00:00:23]}
64. Nc5+ {[%clk 00:03:13]} {[%emt 00:00:17]} Kd6 {[%clk 00:06:37]} {[%emt
00:00:11]} 65. Bf3 {[%clk 00:03:07]} {[%emt 00:00:16]} Ke7 {[%clk 00:06:27]}
{[%emt 00:00:20]} 66. Ne4 {[%clk 00:03:06]} {[%emt 00:00:10]} Kf7 {[%clk
00:06:18]} {[%emt 00:00:19]} 67. Nd2 {[%clk 00:03:12]} {[%emt 00:00:05]} Na5
{[%clk 00:06:06]} {[%emt 00:00:22]} 68. Kb4 {[%clk 00:03:02]} {[%emt 00:00:21]}
Bc6 {[%clk 00:06:14]} {[%emt 00:00:01]} 69. Kxa5 {[%clk 00:03:04]} {[%emt
00:00:08]} Bxf3 {[%emt 00:00:03]} 1-0

[Event "NM-Senior Hurtig 2018"]
[Site "Frimurer Logen, Norway"]
[Date "2018.11.10"]
[Round "5.5"]
[White "Olsen, Trygve"]
[Black "Brobakken, Geir"]
[Result "0-1"]
[TimeControl "20 + 10"]
[WhiteElo "1464"]
[BlackElo "1759"]

1. f4 {[%clk 00:20:09]} {[%emt 00:00:01]} d5 {[%clk 00:20:07]} {[%emt
00:00:04]} 2. d4 {[%clk 00:20:18]} {[%emt 00:00:01]} Nf6 {[%clk 00:20:04]}
{[%emt 00:00:12]} 3. Nf3 {[%clk 00:20:27]} Bf5 {[%clk 00:19:55]} {[%emt
00:00:20]} 4. e3 {[%clk 00:20:36]} {[%emt 00:00:02]} e6 {[%clk 00:19:48]}
{[%emt 00:00:17]} 5. Be2 {[%clk 00:20:44]} Nbd7 {[%clk 00:19:41]} {[%emt
00:00:17]} 6. O-O {[%clk 00:20:32]} {[%emt 00:00:23]} c6 {[%clk 00:19:40]}
{[%emt 00:00:10]} 7. c3 {[%clk 00:20:35]} {[%emt 00:00:07]} Ne4 {[%clk
00:19:14]} {[%emt 00:00:35]} 8. Nbd2 {[%clk 00:20:34]} {[%emt 00:00:11]} Qc7
{[%clk 00:19:05]} {[%emt 00:00:20]} 9. Nxe4 {[%clk 00:20:33]} {[%emt 00:00:10]}
dxe4 {[%clk 00:18:53]} {[%emt 00:00:21]} 10. Nd2 {[%clk 00:20:39]} {[%emt
00:00:05]} h6 {[%clk 00:18:37]} {[%emt 00:00:26]} 11. Bg4 {[%clk 00:20:40]}
{[%emt 00:00:08]} O-O-O {[%clk 00:17:46]} {[%emt 00:01:00]} 12. b4 {[%clk
00:20:39]} {[%emt 00:00:12]} Nf6 {[%clk 00:16:59]} {[%emt 00:00:57]} 13. Bxf5
{[%clk 00:20:44]} {[%emt 00:00:05]} exf5 {[%clk 00:17:07]} {[%emt 00:00:02]} 14.
a4 {[%clk 00:20:53]} {[%emt 00:00:02]} Nd5 {[%clk 00:17:06]} {[%emt 00:00:11]}
15. Nb1 {[%clk 00:20:51]} {[%emt 00:00:12]} Be7 {[%clk 00:16:35]} {[%emt
00:00:40]} 16. Qb3 {[%clk 00:20:26]} {[%emt 00:00:36]} f6 {[%clk 00:14:33]}
{[%emt 00:02:11]} 17. a5 {[%clk 00:20:11]} {[%emt 00:00:25]} a6 {[%clk
00:14:31]} {[%emt 00:00:13]} 18. Na3 {[%clk 00:19:58]} {[%emt 00:00:23]} Rdf8
{[%clk 00:13:49]} {[%emt 00:00:52]} 19. Nc4 {[%clk 00:20:03]} {[%emt 00:00:05]}
g5 {[%clk 00:13:30]} {[%emt 00:00:29]} 20. Nb6+ {[%clk 00:19:59]} {[%emt
00:00:14]} Nxb6 {[%clk 00:13:37]} {[%emt 00:00:03]} 21. axb6 {[%clk 00:20:07]}
{[%emt 00:00:02]} Qd7 {[%clk 00:13:33]} {[%emt 00:00:14]} 22. c4 {[%clk
00:19:49]} {[%emt 00:00:28]} gxf4 {[%clk 00:13:33]} {[%emt 00:00:10]} 23. Rxf4
{[%clk 00:19:47]} {[%emt 00:00:10]} Bd6 {[%clk 00:13:41]} {[%emt 00:00:03]} 24.
Rh4 {[%clk 00:19:46]} {[%emt 00:00:11]} Bb8 {[%clk 00:13:21]} {[%emt 00:00:31]}
25. Ra5 {[%clk 00:17:23]} {[%emt 00:02:32]} f4 {[%clk 00:13:25]} {[%emt
00:00:06]} 26. Qa3 {[%clk 00:16:55]} {[%emt 00:00:39]} Rfg8 {[%clk 00:13:18]}
{[%emt 00:00:16]} 27. d5 {[%clk 00:16:26]} {[%emt 00:00:39]} Qg7 {[%clk
00:11:39]} {[%emt 00:01:49]} 28. Qa2 {[%clk 00:16:14]} {[%emt 00:00:20]} f3
{[%clk 00:11:27]} {[%emt 00:00:25]} 29. g3 {[%clk 00:14:51]} {[%emt 00:01:31]}
Bxg3 {[%clk 00:11:33]} {[%emt 00:00:04]} 0-1